fUSD/lending_fUSD_20260107
["ID","MTS","AMOUNT","RATE_DAILY","PERIOD"]
[400616416,1767746842990,500.0,0.0003287,120]
[400616417,1767746844299,500.0,0.0003287,120]
[400616418,1767746845623,500.0,0.0003287,120]
[400616419,1767746846092,160.0,0.000328,120]
[400616420,1767746847499,500.0,0.0003287,120]
[400616421,1767746847566,160.0,0.000328,120]
[400616422,1767746848201,500.0,0.0003287,120]
[400616423,1767746849483,500.0,0.0003287,120]
[400616424,1767746850750,500.0,0.0003287,120]
[400616425,1767746852266,407.64604358,0.0003287,120]
[400616429,1767746973145,-2799.24,0.00016732,2]
[400616430,1767746973167,-2555.866904,0.00016774,2]
[400616450,1767747032200,-522.90611704,0.00016651,3]
[400616451,1767747032212,-375.12799992,0.00016651,3]
[400616452,1767747032307,-100.96588304,0.00016651,3]
[400616453,1767747032317,-859.623096,0.00016774,2]
[400616454,1767747032326,-300.0,0.00016848,2]
[400616455,1767747032336,-171.3815194,0.00016848,2]
[400616456,1767747032362,-128.6184806,0.00016848,2]
[400616457,1767747032372,-1200.0,0.00016848,2]
[400616458,1767747032382,-300.0,0.00016848,2]
[400616459,1767747032391,-195.0,0.00016849,2]
[400616460,1767747032400,-12181.61653545,0.00016849,2]
[400616461,1767747032411,-335.44,0.00016857,2]
[400616462,1767747032422,-162.0,0.000169,2]
[400616463,1767747032431,-162.37,0.000169,2]
[400616464,1767747032441,-159.34868647,0.00016987,2]
[400616465,1767747032450,-1180.21,0.00017056,2]
[400616466,1767747032459,-1776.95041201,0.00017065,2]
[400616467,1767747032469,-184.49935178,0.00017308,2]
[400616468,1767747032478,-151.0,0.0001742,2]
[400616469,1767747032487,-151.0,0.0001742,2]
[400616470,1767747032497,-151.0,0.00017421,2]
[400616471,1767747032506,-151.0,0.00017421,2]
[400616472,1767747032516,-23798.24970585,0.000175,2]
[400616473,1767747032526,-200.0,0.00017556,2]
[400616474,1767747032535,-2799.24,0.00017569,2]
[400616475,1767747032547,-290.0,0.00017573,2]
[400616476,1767747032557,-1000000.0,0.00017589,2]
[400616477,1767747032566,-363.39940269,0.00017625,2]
[400616478,1767747032576,-841.20046872,0.00017625,2]
[400616479,1767747032585,-216.26276468,0.00017689,2]
[400616481,1767747032594,-151.0,0.00017689,2]
[400616482,1767747032603,-151.0,0.00017689,2]
[400616483,1767747032612,-151.0,0.00017689,2]
[400616484,1767747032625,-151.0,0.00017689,2]
[400616485,1767747032635,-151.0,0.00017689,2]
[400616486,1767747032644,-151.0,0.00017689,2]
[400616487,1767747032653,-151.0,0.00017696,2]
[400616488,1767747032663,-1000.0,0.00017698,2]
[400616489,1767747032672,-2041.412,0.00017698,2]
[400616490,1767747032681,-158.353,0.00017698,2]
[400616491,1767747032691,-550.0,0.00017698,2]
[400616492,1767747032700,-500.0,0.00017699,2]
[400616493,1767747032711,-500.0,0.00017699,2]
[400616494,1767747032720,-500.0,0.00017699,2]
[400616495,1767747032730,-500.0,0.00017699,2]
[400616496,1767747032740,-500.0,0.00017699,2]
[400616497,1767747032749,-449.8539774,0.00017699,2]
[400616498,1767747032759,-500.0,0.00017699,2]
[400616499,1767747032769,-500.0,0.00017699,2]
[400616500,1767747032778,-500.0,0.00017699,2]
[400616501,1767747032787,-500.0,0.00017699,2]
[400616502,1767747033100,-500.0,0.00017699,2]
[400616503,1767747033114,-500.0,0.00017699,2]
[400616504,1767747033123,-500.0,0.00017699,2]
[400616505,1767747033132,-500.0,0.00017699,2]
[400616506,1767747033143,-500.0,0.00017699,2]
[400616507,1767747033152,-500.0,0.00017699,2]
[400616508,1767747033161,-500.0,0.00017699,2]
[400616509,1767747033170,-500.0,0.00017699,2]
[400616510,1767747033180,-500.0,0.00017699,2]
[400616511,1767747033190,-500.0,0.00017699,2]
[400616512,1767747033199,-500.0,0.00017699,2]
[400616513,1767747033208,-500.0,0.00017699,2]
[400616514,1767747033217,-500.0,0.00017699,2]
[400616515,1767747033226,-500.0,0.00017699,2]
[400616516,1767747033236,-500.0,0.00017699,2]
[400616517,1767747033246,-500.0,0.00017699,2]
[400616518,1767747033255,-500.0,0.00017699,2]
[400616519,1767747033264,-500.0,0.00017699,2]
[400616520,1767747033274,-500.0,0.00017699,2]
[400616521,1767747033283,-500.0,0.00017699,2]
[400616522,1767747033292,-500.0,0.00017699,2]
[400616523,1767747033304,-500.0,0.00017699,2]
[400616524,1767747033313,-500.0,0.00017699,2]
[400616525,1767747033322,-500.0,0.00017699,2]
[400616526,1767747033331,-500.0,0.00017699,2]
[400616527,1767747033340,-500.0,0.00017699,2]
[400616528,1767747033350,-500.0,0.00017699,2]
[400616529,1767747033359,-500.0,0.00017699,2]
[400616530,1767747033368,-500.0,0.00017699,2]
[400616531,1767747033379,-302.17795895,0.00017699,2]
[400616532,1767747033388,-500.0,0.00017699,2]
[400616533,1767747033398,-555.6722184,0.00017699,2]
[400616534,1767747033406,-500.0,0.00017699,2]
[400616535,1767747033416,-500.0,0.00017699,2]
[400616536,1767747033425,-500.0,0.00017699,2]
[400616537,1767747033434,-1611.55,0.00017699,2]
[400616538,1767747033443,-500.0,0.00017699,2]
[400616539,1767747033452,-2968.25,0.00017728,2]
[400616540,1767747033461,-336.88,0.00017728,2]
[400616541,1767747033471,-3174.27,0.00017728,2]
[400616542,1767747033480,-299.99,0.00017728,4]
[400616543,1767747033489,-1052.82489677,0.00017728,2]
[400616544,1767747034176,-2162.83510323,0.00017728,2]
[400616545,1767747034186,-8387.11506314,0.00017728,2]
[400616546,1767747034197,-1595.26493686,0.00017728,2]
[400616547,1767747034207,-527.32,0.00017728,5]
[400616548,1767747034216,-9999.99,0.00017728,2]
[400616549,1767747034225,-14035.15388879,0.00017728,2]
[400616550,1767747034246,-1254.41808677,0.00017728,2]
[400616551,1767747034257,-273.84430536,0.00017728,2]
[400616552,1767747034268,-925.0,0.00017728,2]
[400616553,1767747034283,-5938.50467901,0.00017728,2]
[400616554,1767747034295,-16906.3688467,0.00017728,2]
[400616555,1767747034307,-560.21815951,0.00017728,2]
[400616556,1767747034318,-269.84867698,0.00017728,2]
[400616562,1767747038177,-2866.99565491,0.00017728,2]
[400616564,1767747038189,-933.99616467,0.00017728,2]
[400616567,1767747038201,-5392.6615373,0.00017728,2]
[400616569,1767747038211,-136.61739679,0.00017728,2]
[400616570,1767747038228,-9863.37260321,0.00017728,2]
[400616571,1767747038238,-999.99,0.00017728,2]
[400616572,1767747038248,-150.99,0.00017728,2]
[400616573,1767747038258,-17636.53,0.00017728,2]
[400616574,1767747038268,-150.99,0.00017728,2]
[400616575,1767747038277,-9999.99,0.00017728,2]
[400616576,1767747038288,-1178.33,0.00017728,2]
[400616577,1767747038298,-23798.24970578,0.00017825,2]
[400616578,1767747038308,-1000.0,0.000179,2]
[400616579,1767747038318,-1093.85090882,0.000179,2]
[400616580,1767747038329,-5124.85773712,0.000179,2]
[400616581,1767747038339,-1402.4114969,0.000179,2]
[400616582,1767747038350,-2766.10622986,0.000179,2]
[400616583,1767747038359,-1846.1457405,0.000179,2]
[400616584,1767747038369,-914.96897657,0.000179,2]
[400616585,1767747038379,-646.07443295,0.00017907,2]
[400616586,1767747038389,-500.0,0.00017973,2]
[400616587,1767747038400,-500.0,0.00017973,2]
[400616588,1767747038410,-500.0,0.00017973,2]
[400616589,1767747038421,-165.44014237,0.00017973,2]
[400616590,1767747038431,-228.36321658,0.00017973,2]
[400616591,1767747038442,-500.0,0.00017973,2]
[400616592,1767747038451,-500.0,0.00017973,2]
[400616593,1767747038460,-500.0,0.00017973,2]
[400616594,1767747038470,-500.0,0.00017973,2]
[400616595,1767747038481,-500.0,0.00017973,2]
[400616596,1767747038490,-500.0,0.00017973,2]
[400616597,1767747038500,-500.0,0.00017973,2]
[400616598,1767747038510,-500.0,0.00017973,2]
[400616599,1767747038520,-508.49267712,0.00017973,2]
[400616600,1767747038529,-500.0,0.00017973,2]
[400616601,1767747038539,-500.0,0.00017973,2]
[400616602,1767747038549,-500.0,0.00017973,2]
[400616603,1767747038559,-505.89055766,0.00017973,2]
[400616604,1767747038568,-500.0,0.00017973,2]
[400616605,1767747038578,-516.59149792,0.00017973,2]
[400616606,1767747038588,-500.0,0.00017973,2]
[400616607,1767747038598,-1611.55,0.00017973,2]
[400616608,1767747038607,-841.20046866,0.0001798,2]
[400616609,1767747038617,-230.97811111,0.00017989,2]
[400616610,1767747038628,-230.97811111,0.0001799,2]
[400616611,1767747038637,-151.0,0.00017997,2]
[400616612,1767747038646,-151.0,0.00017997,2]
[400616613,1767747038655,-151.0,0.00017997,2]
[400616614,1767747038664,-341.99,0.00017999,2]
[400616615,1767747038674,-157.88868512,0.00017999,2]
[400616616,1767747038683,-24857.6152619,0.00017999,2]
[400616617,1767747038692,-500.0,0.00017999,2]
[400616618,1767747038701,-431.84052269,0.00017999,2]
[400616619,1767747038710,-500.0,0.00017999,2]
[400616620,1767747038720,-15751.2210565,0.00017999,2]
[400616621,1767747038729,-209.12934922,0.00017999,2]
[400616622,1767747038739,-500.0,0.00017999,2]
[400616623,1767747038748,-441.05998686,0.00017999,2]
[400616624,1767747038757,-424.00712375,0.00017999,2]
[400616625,1767747038767,-500.0,0.00017999,2]
[400616626,1767747038776,-500.0,0.00017999,2]
[400616627,1767747038786,-500.0,0.00017999,2]
[400616628,1767747038796,-500.0,0.00017999,2]
[400616629,1767747038806,-500.0,0.00017999,2]
[400616631,1767747038816,-500.0,0.00017999,2]
[400616633,1767747038826,-500.0,0.00017999,2]
[400616635,1767747038836,-637.56746892,0.00017999,2]
[400616637,1767747038845,-500.0,0.00017999,2]
[400616639,1767747038855,-230.74754803,0.00017999,2]
[400616641,1767747038864,-557164.17807713,0.00018,2]
[400616643,1767747038873,-2179775.35229323,0.00018,2]
[400616645,1767747038883,-168123.31274029,0.00018,2]
[400616647,1767747038895,-25003.52725681,0.00018,2]
[400616649,1767747038904,-96563.4199985,0.00018,2]
[400616651,1767747038914,-202.0,0.00018,2]
[400616653,1767747038924,-23798.24970578,0.00018149,2]
[400616655,1767747038933,-166.66,0.00018203,2]
[400616657,1767747038943,-500.0,0.00018247,2]
[400616659,1767747038952,-1611.55,0.00018247,2]
[400616661,1767747038961,-166.66,0.00018262,2]
[400616663,1767747038971,-1500.0,0.00018287,2]
[400616665,1767747038982,-841.20046866,0.00018336,2]
[400616667,1767747038991,-420.0,0.00018405,2]
[400616670,1767747039001,-420.0,0.00018405,2]
[400616672,1767747039010,-195.0,0.00018406,2]
[400616674,1767747039020,-311.54275263,0.00018406,2]
[400616675,1767747039029,-600.0,0.00018406,2]
[400616678,1767747039039,-2799.24,0.00018406,2]
[400616680,1767747039048,-489.75,0.0001841,2]
[400616681,1767747039058,-310.07884292,0.00018432,5]
[400616683,1767747039068,-500.0,0.00018433,2]
[400616685,1767747039078,-500.0,0.00018433,2]
[400616688,1767747039088,-500.0,0.00018433,2]
[400616689,1767747039098,-500.0,0.00018433,2]
[400616692,1767747039111,-500.0,0.00018433,2]
[400616694,1767747039120,-500.0,0.00018433,2]
[400616695,1767747039130,-500.0,0.00018433,2]
[400616698,1767747039140,-500.0,0.00018433,2]
[400616699,1767747039150,-500.0,0.00018433,2]
[400616701,1767747039160,-500.0,0.00018433,2]
[400616704,1767747039170,-500.0,0.00018433,2]
[400616705,1767747039179,-500.0,0.00018433,2]
[400616707,1767747039192,-500.0,0.00018433,2]
[400616709,1767747039202,-150.0,0.0001844,2]
[400616711,1767747039211,-250.0,0.00018452,2]
[400616713,1767747039220,-250.51613614,0.00018452,2]
[400616715,1767747039229,-23798.24970578,0.00018474,2]
[400616717,1767747039239,-1680.0,0.00018496,2]
[400616719,1767747039248,-411.41313033,0.00018521,2]
[400616721,1767747039257,-548.21180041,0.00018521,2]
[400616723,1767747039266,-1000.0,0.00018521,2]
[400616725,1767747039276,-1000.0,0.00018521,2]
[400616728,1767747039286,-1000.0,0.00018521,2]
[400616729,1767747039295,-1000.0,0.00018521,2]
[400616731,1767747039305,-500.0,0.00018521,2]
[400616733,1767747039315,-505.83293522,0.00018521,2]
[400616735,1767747039324,-1000.0,0.00018521,2]
[400616737,1767747039334,-500.0,0.00018521,2]
[400616739,1767747039343,-500.0,0.00018521,2]
[400616741,1767747039352,-1000.0,0.00018521,2]
[400616743,1767747039362,-1000.0,0.00018521,2]
[400616745,1767747039372,-1000.0,0.00018521,2]
[400616747,1767747039381,-1000.0,0.00018521,2]
[400616749,1767747039391,-500.0,0.00018521,2]
[400616751,1767747039400,-1611.55,0.00018521,2]
[400616753,1767747039410,-250.0,0.00018533,2]
[400616755,1767747039420,-300.0,0.00018533,2]
[400616757,1767747039430,-300.0,0.00018533,2]
[400616759,1767747039440,-195.0,0.00018533,2]
[400616761,1767747039450,-600.0,0.00018533,2]
[400616763,1767747039460,-1900.68907832,0.00018533,2]
[400616765,1767747039469,-166.66,0.00018557,2]
[400616767,1767747039478,-815.97115318,0.00018608,2]
[400616768,1767747039489,-4119.72,0.00018623,2]
[400616771,1767747039499,-900.0,0.00018648,2]
[400616773,1767747039509,-500.0,0.00018663,2]
[400616775,1767747039519,-841.20046866,0.00018691,2]
[400616777,1767747039528,-179.978,0.00018767,2]
[400616779,1767747039537,-1000.0,0.00018767,2]
[400616781,1767747039546,-1000.0,0.00018767,2]
[400616783,1767747039555,-589.55968275,0.00018795,2]
[400616785,1767747039565,-1611.55,0.00018795,2]
[400616787,1767747039574,-23798.24970578,0.00018798,2]
[400616789,1767747039583,-166.66,0.00018865,2]
[400616791,1767747039592,-167.99433605,0.000189,2]
[400616793,1767747039602,-341.99,0.00018946,2]
[400616795,1767747039611,-821.96039417,0.00019,2]
[400616797,1767747039620,-443.69732291,0.00019,2]
[400616798,1767747039629,-300.0,0.00019,2]
[400616800,1767747039638,-24107.16627916,0.00019,2]
[400616802,1767747039648,-841.20046866,0.00019047,2]
[400616804,1767747039657,-500.0,0.00019068,2]
[400616806,1767747039667,-1500.0,0.00019068,2]
[400616808,1767747039676,-1500.0,0.00019068,2]
[400616810,1767747039685,-1500.0,0.00019068,2]
[400616813,1767747039695,-1509.74714228,0.00019068,2]
[400616815,1767747039704,-500.0,0.00019068,2]
[400616816,1767747039713,-1500.0,0.00019068,2]
[400616819,1767747039723,-1500.0,0.00019068,2]
[400616821,1767747039732,-1500.0,0.00019068,2]
[400616822,1767747039742,-1611.55,0.00019069,2]
[400616825,1767747039751,-1000.0,0.00019111,2]
[400616827,1767747039760,-23798.24970578,0.00019123,2]
[400616828,1767747039769,-916.805558,0.00019178,2]
[400616830,1767747039778,-2000.0,0.000192,2]
[400616833,1767747039787,-2799.24,0.00019242,2]
[400616834,1767747039797,-1611.55,0.00019343,2]
[400616837,1767747039806,-841.20046866,0.00019402,2]
[400616838,1767747039815,-23798.24970578,0.00019447,2]
[400616840,1767747039824,-166.66,0.00019468,2]
[400616842,1767747039833,-2000.0,0.00019616,2]
[400616844,1767747039842,-195.94092986,0.00019616,2]
[400616846,1767747039852,-2000.0,0.00019616,2]
[400616848,1767747039861,-2000.0,0.00019616,2]
[400616850,1767747039870,-2000.0,0.00019616,2]
[400616853,1767747039880,-2000.0,0.00019616,2]
[400616854,1767747039889,-1611.55,0.00019617,2]
[400616857,1767747039899,-841.20046866,0.00019758,2]
[400616858,1767747039908,-23798.24970578,0.00019772,2]
[400616861,1767747039918,-1611.55,0.00019891,2]
[400616863,1767747039927,-341.99,0.00019893,2]
[400616865,1767747039936,-500.0,0.00019899,2]
[400616867,1767747039945,-543.11959034,0.00019899,2]
[400616869,1767747039954,-500.0,0.00019899,2]
[400616872,1767747039964,-161953.1274176,0.0001995,15]
[400616875,1767747039973,-500.815548,0.00019973,2]
[400616878,1767747039982,-500.0,0.00019973,2]
[400616881,1767747039991,-500.0,0.00019973,2]
[400616883,1767747040001,-500.0,0.00019973,2]
[400616885,1767747040011,-500.0,0.00019973,2]
[400616887,1767747040021,-162.64594824,0.00019973,2]
[400616890,1767747040030,-162.75708807,0.00019973,2]
[400616891,1767747040039,-500.0,0.00019973,2]
[400616893,1767747040050,-500.0,0.00019973,2]
[400616895,1767747040059,-500.0,0.00019973,2]
[400616897,1767747040069,-500.0,0.00019973,2]
[400616899,1767747040078,-500.0,0.00019973,2]
[400616901,1767747040087,-500.0,0.00019973,2]
[400616903,1767747040098,-520.05691851,0.00019973,2]
[400616905,1767747040111,-500.0,0.00019973,2]
[400616907,1767747040120,-500.0,0.00019973,2]
[400616909,1767747040129,-500.0,0.00019973,2]
[400616911,1767747040139,-571.61330735,0.00019973,2]
[400616913,1767747040150,-500.0,0.00019973,2]
[400616915,1767747040160,-500.0,0.00019973,2]
[400616917,1767747040170,-500.0,0.00019973,2]
[400616920,1767747040181,-500.0,0.00019973,2]
[400616923,1767747040191,-500.0,0.00019973,2]
[400616925,1767747040201,-500.0,0.00019973,2]
[400616927,1767747040211,-500.0,0.00019973,2]
[400616929,1767747040220,-557.25951584,0.00019973,2]
[400616931,1767747040229,-500.0,0.00019973,2]
[400616933,1767747040238,-501.86729539,0.00019973,2]
[400616935,1767747040248,-500.0,0.00019973,2]
[400616937,1767747040257,-500.0,0.00019973,2]
[400616939,1767747040266,-510.73735296,0.00019973,2]
[400616941,1767747040276,-500.0,0.00019973,2]
[400616943,1767747040285,-500.0,0.00019973,2]
[400616945,1767747040294,-500.0,0.00019973,2]
[400616947,1767747040308,-500.0,0.00019973,2]
[400616949,1767747040318,-500.0,0.00019973,2]
[400616951,1767747040327,-501.03208473,0.00019973,2]
[400616953,1767747040336,-500.0,0.00019973,2]
[400616955,1767747040347,-500.0,0.00019973,2]
[400616957,1767747040356,-500.0,0.00019973,2]
[400616959,1767747040366,-500.0,0.00019973,2]
[400616961,1767747040376,-500.0,0.00019973,2]
[400616963,1767747040385,-500.0,0.00019973,2]
[400616965,1767747040394,-500.0,0.00019973,2]
[400616968,1767747040406,-161.4599478,0.00019973,2]
[400616969,1767747040415,-484.20975983,0.00019973,2]
[400616971,1767747040424,-500.0,0.00019973,2]
[400616973,1767747040434,-554.45007798,0.00019973,2]
[400616975,1767747040444,-500.0,0.00019973,2]
[400616978,1767747040454,-500.0,0.00019973,2]
[400616980,1767747040463,-500.0,0.00019973,2]
[400616981,1767747040472,-500.0,0.00019973,2]
[400616983,1767747040481,-162.01757701,0.00019973,2]
[400616985,1767747040490,-500.0,0.00019973,2]
[400616987,1767747040500,-500.0,0.00019973,2]
[400616989,1767747040509,-182.50256145,0.00019973,2]
[400616991,1767747040518,-500.0,0.00019973,2]
[400616993,1767747040527,-164.10524853,0.00019973,2]
[400616995,1767747040537,-545.59988784,0.00019973,2]
[400616997,1767747040547,-510.33159281,0.00019973,2]
[400616999,1767747040557,-160.52528337,0.00019973,2]
[400617002,1767747040566,-500.0,0.00019973,2]
[400617004,1767747040578,-207.95982473,0.00019973,2]
[400617006,1767747040587,-500.0,0.00019973,2]
[400617008,1767747040596,-335.39255931,0.00019973,2]
[400617030,1767747040783,-500.0,0.00019973,2]
[400617032,1767747040793,-500.0,0.00019973,2]
[400617034,1767747040803,-156.89496894,0.00019973,2]
[400617036,1767747040812,-500.0,0.00019973,2]
[400617038,1767747040822,-469.65305736,0.00019973,2]
[400617040,1767747040831,-500.0,0.00019973,2]
[400617042,1767747040840,-500.0,0.00019973,2]
[400617044,1767747040849,-524.23019632,0.00019973,2]
[400617046,1767747040858,-500.0,0.00019973,2]
[400617049,1767747040867,-167.31133184,0.00019973,2]
[400617052,1767747040875,-1463.61091402,0.0002,5]
[400617054,1767747040884,-37267.36681425,0.0002,5]
[400617056,1767747040893,-8300.0,0.0002,4]
[400617058,1767747040902,-370.82306574,0.0002,20]
[400617060,1767747040911,-37721.03672082,0.0002,14]
[400617062,1767747040921,-4571.34107259,0.0002,3]
[400617064,1767747040930,-496.69513219,0.0002,10]
[400617066,1767747040938,-1557.97021985,0.0002,2]
[400617068,1767747040947,-165.52157161,0.0002,20]
[400617070,1767747040957,-1000.0,0.0002,7]
[400617072,1767747040966,-900.0,0.00020018,2]
[400617074,1767747040976,-166.66,0.00020071,2]
[400617076,1767747040986,-2799.24,0.00020079,2]
[400617078,1767747040995,-587.0,0.00020105,2]
[400617080,1767747041004,-587.0,0.00020105,2]
[400617082,1767747041013,-841.20046866,0.00020113,2]
[400617084,1767747041022,-2500.0,0.00020164,2]
[400617086,1767747041031,-1452.6197142,0.00020164,2]
[400617088,1767747041040,-1237.07480166,0.00020164,2]
[400617090,1767747041050,-1003.93563554,0.00020164,2]
[400617092,1767747041058,-2500.0,0.00020164,2]
[400617094,1767747041067,-1611.55,0.00020165,2]
[400617096,1767747041076,-2351.0,0.00020306,2]
[400617098,1767747041085,-96563.4199985,0.00020365,2]
[400617100,1767747041094,-2870.5,0.00020368,2]
[400617102,1767747041105,-161.1,0.00020368,2]
[400617104,1767747041117,-193126.8399971,0.00020412,2]
[400617106,1767747041126,-151.0,0.00020412,2]
[400617108,1767747041135,-205.108443,0.00020412,2]
[400617110,1767747041144,-205.108443,0.00020412,2]
[400617112,1767747041155,-205.108443,0.00020412,2]
[400617114,1767747041164,-205.108443,0.00020412,2]
[400617116,1767747041173,-1611.55,0.00020439,2]
[400617118,1767747041185,-841.20046866,0.00020469,2]
[400617120,1767747041195,-1000.0,0.00020521,2]
[400617122,1767747041207,-1000.0,0.00020521,2]
[400617125,1767747041216,-286.52563142,0.00020521,2]
[400617127,1767747041225,-1000.0,0.00020521,2]
[400617129,1767747041234,-1000.0,0.00020521,2]
[400617130,1767747041243,-690.66835614,0.00020521,2]
[400617133,1767747041253,-1000.0,0.00020521,2]
[400617135,1767747041263,-1000.0,0.00020521,2]
[400617137,1767747041272,-1000.0,0.00020521,2]
[400617139,1767747041280,-1000.0,0.00020521,2]
[400617141,1767747041289,-1000.0,0.00020521,2]
[400617143,1767747041299,-1000.0,0.00020521,2]
[400617144,1767747041309,-1000.0,0.00020521,2]
[400617146,1767747041318,-1000.0,0.00020521,2]
[400617149,1767747041328,-168.23151009,0.00020521,2]
[400617151,1767747041338,-1000.0,0.00020521,2]
[400617153,1767747041348,-609.74056714,0.00020521,2]
[400617155,1767747041356,-1000.0,0.00020521,2]
[400617157,1767747041365,-514.89956747,0.00020521,2]
[400617159,1767747041374,-932.597556,0.00020521,2]
[400617161,1767747041383,-1000.0,0.00020521,2]
[400617163,1767747041392,-1000.0,0.00020521,2]
[400617164,1767747041401,-1000.0,0.00020521,2]
[400617166,1767747041411,-500.801884,0.00020521,2]
[400617169,1767747041421,-278.74307495,0.00020521,2]
[400617170,1767747041431,-1000.0,0.00020521,2]
[400617172,1767747041440,-1000.0,0.00020521,2]
[400617174,1767747041449,-1000.0,0.00020521,2]
[400617176,1767747041458,-428.91151684,0.00020521,2]
[400617179,1767747041468,-1000.0,0.00020521,2]
[400617181,1767747041477,-1000.0,0.00020521,2]
[400617183,1767747041486,-1000.0,0.00020521,2]
[400617185,1767747041495,-1000.0,0.00020521,2]
[400617186,1767747041504,-1004.15287771,0.00020521,2]
[400617188,1767747041514,-1087.43896406,0.00020521,2]
[400617190,1767747041524,-1000.0,0.00020521,2]
[400617193,1767747041534,-1000.0,0.00020521,2]
[400617195,1767747041544,-1000.0,0.00020521,2]
[400617197,1767747041553,-1000.0,0.00020521,2]
[400617199,1767747041563,-1000.0,0.00020521,2]
[400617201,1767747041571,-1000.0,0.00020521,2]
[400617202,1767747041580,-1000.0,0.00020521,2]
[400617203,1767747041589,-1000.0,0.00020521,2]
[400617204,1767747041597,-1000.0,0.00020521,2]
[400617205,1767747041606,-194.75564205,0.00020521,2]
[400617206,1767747041615,-1000.0,0.00020521,2]
[400617207,1767747041625,-1000.61424225,0.00020521,2]
[400617208,1767747041634,-577.63829625,0.00020521,2]
[400617209,1767747041643,-1000.0,0.00020521,2]
[400617210,1767747041652,-1000.0,0.00020521,2]
[400617211,1767747041660,-1000.0,0.00020521,2]
[400617212,1767747041669,-151.0,0.00020521,2]
[400617213,1767747041678,-151.0,0.00020521,2]
[400617214,1767747041687,-151.0,0.00020521,2]
[400617216,1767747041696,-151.0,0.00020521,2]
[400617218,1767747041705,-151.0,0.00020521,2]
[400617220,1767747041714,-151.0,0.00020521,2]
[400617222,1767747041723,-151.0,0.00020521,2]
[400617224,1767747041733,-151.0,0.00020521,2]
[400617226,1767747041742,-223.68981,0.00020521,2]
[400617228,1767747041751,-223.68981,0.00020521,2]
[400617230,1767747041760,-223.68981,0.00020521,2]
[400617232,1767747041769,-223.68981,0.00020521,2]
[400617234,1767747041778,-166.66,0.00020674,2]
[400617236,1767747041787,-3000.0,0.00020712,2]
[400617238,1767747041796,-1228.70627457,0.00020712,2]
[400617240,1767747041807,-1611.62397433,0.00020713,2]
[400617242,1767747041816,-363.39940269,0.00020793,2]
[400617244,1767747041826,-841.20046866,0.00020824,2]
[400617246,1767747041835,-341.99,0.00020841,2]
[400617248,1767747041846,-250.0,0.00020867,2]
[400617250,1767747041855,-500.0,0.00020877,2]
[400617252,1767747041864,-9917.98808771,0.000209,30]
[400617254,1767747041873,-1846.1457405,0.000209,2]
[400617258,1767747041893,-290.08099,0.00020924,2]
[400617260,1767747041910,-13435.22,0.00020924,2]
[400617263,1767747041929,-150.0,0.00020973,2]
[400617266,1767747041949,-163.79051044,0.00020973,2]
[400617269,1767747041964,-127519.24258494,0.0002099,2]
[400617272,1767747041983,-963.692266,0.0002099,2]
[400617275,1767747042003,-963.692266,0.0002099,2]
[400617278,1767747042019,-963.692266,0.0002099,2]
[400617281,1767747042038,-963.692266,0.0002099,2]
[400617284,1767747042056,-422.884766,0.0002099,2]
[400617287,1767747042075,-422.884766,0.0002099,2]
[400617290,1767747042091,-422.884766,0.0002099,2]
[400617292,1767747042108,-151.0,0.0002099,2]
[400617295,1767747042123,-422.884766,0.0002099,2]